[Event "Titled Tuesday Blitz April 11 Early 2023"]
[White "Pham, Le Thao Nguyen"]
[Black "Hambleton, Aman"]
[WhiteFideId "12401226"]
[BlackFideId "2606577"]
[WhiteElo "2286"]
[BlackElo "2511"]
[Result "0-1"]
[Round "09"]
[TimeControl "180+2"]
[Date "2023.04.11"]
[WhiteClock "0:00:12"]
[BlackClock "0:00:06"]

1. d4 {[%clk 0:02:56]}  e5 {[%clk 0:02:58]} 2. dxe5 {[%clk 0:02:55]}  Nc6 {[%clk 0:02:57]} 3. Nf3 {[%clk 0:02:56]}  Qe7 {[%clk 0:02:56]} 4. Qd5 {[%clk 0:02:25]}  f6 {[%clk 0:02:51]} 5. exf6 {[%clk 0:02:21]}  Nxf6 {[%clk 0:02:52]} 6. Qd1 {[%clk 0:02:20]}  d5 {[%clk 0:02:51]} 7. e3 {[%clk 0:02:20]}  Bg4 {[%clk 0:02:41]} 8. Be2 {[%clk 0:02:19]}  O-O-O {[%clk 0:02:38]} 9. O-O {[%clk 0:02:19]}  h5 {[%clk 0:02:29]} 10. Nbd2 {[%clk 0:02:05]}  Kb8 {[%clk 0:02:13]} 11. b3 {[%clk 0:02:01]}  Qe6 {[%clk 0:01:41]} 12. Bb2 {[%clk 0:01:50]}  Bd6 {[%clk 0:01:41]} 13. Re1 {[%clk 0:01:28]}  Rhf8 {[%clk 0:01:30]} 14. Bxf6 {[%clk 0:00:57]}  Qxf6 {[%clk 0:01:15]} 15. Nf1 {[%clk 0:00:57]}  g5 {[%clk 0:01:09]} 16. Qd2 {[%clk 0:00:38]}  Bb4 {[%clk 0:01:07]} 17. Qd3 {[%clk 0:00:35]}  Bxe1 {[%clk 0:00:37]} 18. Rxe1 {[%clk 0:00:34]}  Ne5 {[%clk 0:00:20]} 19. Qd1 {[%clk 0:00:27]}  Bxf3 {[%clk 0:00:17]} 20. gxf3 {[%clk 0:00:25]}  Nxf3+ {[%clk 0:00:16]} 21. Bxf3 {[%clk 0:00:26]}  Qxf3 {[%clk 0:00:17]} 22. Qxf3 {[%clk 0:00:26]}  Rxf3 {[%clk 0:00:18]} 23. Re2 {[%clk 0:00:25]}  g4 {[%clk 0:00:14]} 24. Nd2 {[%clk 0:00:19]}  Rf5 {[%clk 0:00:13]} 25. c4 {[%clk 0:00:19]}  a5 {[%clk 0:00:08]} 26. a4 {[%clk 0:00:19]}  d4 {[%clk 0:00:06]} 27. exd4 {[%clk 0:00:18]}  Rxd4 {[%clk 0:00:07]} 28. Ne4 {[%clk 0:00:15]}  Re5 {[%clk 0:00:06]} 29. Ng3 {[%clk 0:00:11]}  Rxe2 {[%clk 0:00:06]} 30. Nxe2 {[%clk 0:00:12]}  Rd3 {[%clk 0:00:06]} 0-1


[Site "https://www.chess.com"]

[Event "Titled Tuesday Blitz April 11 Early 2023"]
[White "Aradhya, Garg"]
[Black "Martic, Ivan"]
[WhiteFideId "25006746"]
[BlackFideId "929301"]
[WhiteElo "2263"]
[BlackElo "2360"]
[Result "0-1"]
[Round "09"]
[TimeControl "180+2"]
[Date "2023.04.11"]
[WhiteClock "0:02:16"]
[BlackClock "0:01:30"]

1. d4 {[%clk 0:03:00]}  d5 {[%clk 0:02:58]} 2. c4 {[%clk 0:03:01]}  c6 {[%clk 0:02:57]} 3. Nf3 {[%clk 0:03:01]}  Nf6 {[%clk 0:02:56]} 4. Nc3 {[%clk 0:03:02]}  dxc4 {[%clk 0:02:54]} 5. a4 {[%clk 0:03:01]}  Bf5 {[%clk 0:02:53]} 6. Ne5 {[%clk 0:03:01]}  Nbd7 {[%clk 0:02:50]} 7. Nxc4 {[%clk 0:03:00]}  Nb6 {[%clk 0:02:50]} 8. Ne5 {[%clk 0:02:57]}  a5 {[%clk 0:02:50]} 9. h4 {[%clk 0:02:53]}  h5 {[%clk 0:02:44]} 10. f3 {[%clk 0:02:53]}  Nfd7 {[%clk 0:02:41]} 11. e4 {[%clk 0:02:48]}  Nxe5 {[%clk 0:02:33]} 12. exf5 {[%clk 0:02:47]}  Ned7 {[%clk 0:02:33]} 13. Qb3 {[%clk 0:02:34]}  Qc7 {[%clk 0:02:32]} 14. Be3 {[%clk 0:02:33]}  g6 {[%clk 0:02:11]} 15. fxg6 {[%clk 0:02:32]}  Qg3+ {[%clk 0:02:08]} 16. Bf2 {[%clk 0:02:29]}  Qxg6 {[%clk 0:02:08]} 17. d5 {[%clk 0:02:30]}  Nxd5 {[%clk 0:02:04]} 18. Nxd5 {[%clk 0:02:28]}  cxd5 {[%clk 0:02:05]} 19. Qxd5 {[%clk 0:02:27]}  e6 {[%clk 0:02:03]} 20. Qe4 {[%clk 0:02:25]}  Bb4+ {[%clk 0:02:01]} 21. Ke2 {[%clk 0:02:25]}  Qh6 {[%clk 0:01:36]} 22. Be3 {[%clk 0:02:18]}  Qg7 {[%clk 0:01:34]} 23. Bd4 {[%clk 0:02:19]}  Qh6 {[%clk 0:01:32]} 24. Be3 {[%clk 0:02:16]}  Qg7 {[%clk 0:01:31]} 25. Bd4 {[%clk 0:02:16]}  Qh6 {[%clk 0:01:31]} 26. g4 {[%clk 0:02:16]}  Qd2# {[%clk 0:01:30]} 0-1


[Site "https://www.chess.com"]

[Event "Titled Tuesday Blitz April 11 Early 2023"]
[White "Tan, Zhongyi"]
[Black "Eynullayev, Atilla"]
[WhiteFideId "8603642"]
[BlackFideId "13413570"]
[WhiteElo "2519"]
[BlackElo "2181"]
[Result "1-0"]
[Round "09"]
[TimeControl "180+2"]
[Date "2023.04.11"]
[WhiteClock "0:00:09"]
[BlackClock "0:00:01"]

1. d4 {[%clk 0:03:00]}  Nf6 {[%clk 0:03:00]} 2. c4 {[%clk 0:03:00]}  e6 {[%clk 0:03:00]} 3. Nc3 {[%clk 0:03:00]}  Bb4 {[%clk 0:03:00]} 4. Nf3 {[%clk 0:03:01]}  O-O {[%clk 0:02:59]} 5. e3 {[%clk 0:03:01]}  d5 {[%clk 0:02:58]} 6. Bd2 {[%clk 0:03:00]}  b6 {[%clk 0:02:57]} 7. cxd5 {[%clk 0:02:59]}  exd5 {[%clk 0:02:56]} 8. Bd3 {[%clk 0:03:00]}  Bb7 {[%clk 0:02:57]} 9. O-O {[%clk 0:03:00]}  Re8 {[%clk 0:02:57]} 10. a3 {[%clk 0:02:55]}  Bd6 {[%clk 0:02:57]} 11. Nb5 {[%clk 0:02:54]}  Bf8 {[%clk 0:02:56]} 12. Rc1 {[%clk 0:02:54]}  c5 {[%clk 0:02:55]} 13. b3 {[%clk 0:02:51]}  a6 {[%clk 0:02:51]} 14. Nc3 {[%clk 0:02:50]}  cxd4 {[%clk 0:02:51]} 15. Nxd4 {[%clk 0:02:51]}  Bxa3 {[%clk 0:02:51]} 16. Rc2 {[%clk 0:02:46]}  Bf8 {[%clk 0:02:43]} 17. Na4 {[%clk 0:02:42]}  Ne4 {[%clk 0:02:39]} 18. Qg4 {[%clk 0:02:29]}  Nd7 {[%clk 0:02:17]} 19. Nf5 {[%clk 0:02:25]}  g6 {[%clk 0:01:54]} 20. Bxe4 {[%clk 0:02:09]}  Rxe4 {[%clk 0:01:53]} 21. Qg3 {[%clk 0:02:09]}  Nf6 {[%clk 0:01:19]} 22. Bc3 {[%clk 0:01:49]}  Nh5 {[%clk 0:01:03]} 23. Qf3 {[%clk 0:01:48]}  Bc8 {[%clk 0:01:02]} 24. Ng3 {[%clk 0:01:16]}  Bg4 {[%clk 0:00:28]} 25. Nxh5 {[%clk 0:01:15]}  Bxf3 {[%clk 0:00:10]} 26. Nf6+ {[%clk 0:01:15]}  Kh8 {[%clk 0:00:10]} 27. Nxe4+ {[%clk 0:01:12]}  Bg7 {[%clk 0:00:11]} 28. Ng3 {[%clk 0:01:06]}  Bg4 {[%clk 0:00:09]} 29. Bxg7+ {[%clk 0:01:05]}  Kxg7 {[%clk 0:00:10]} 30. Rfc1 {[%clk 0:01:02]}  Rc8 {[%clk 0:00:10]} 31. h3 {[%clk 0:01:00]}  Rxc2 {[%clk 0:00:10]} 32. Rxc2 {[%clk 0:01:01]}  Bd7 {[%clk 0:00:10]} 33. Nc3 {[%clk 0:01:01]}  Be6 {[%clk 0:00:09]} 34. Nge2 {[%clk 0:01:00]}  Qd6 {[%clk 0:00:09]} 35. Nd4 {[%clk 0:01:00]}  Qb4 {[%clk 0:00:09]} 36. Kh2 {[%clk 0:00:55]}  a5 {[%clk 0:00:09]} 37. Nce2 {[%clk 0:00:54]}  b5 {[%clk 0:00:07]} 38. Nf4 {[%clk 0:00:53]}  Kf6 {[%clk 0:00:07]} 39. Rc6 {[%clk 0:00:51]}  Ke7 {[%clk 0:00:06]} 40. Rb6 {[%clk 0:00:46]}  a4 {[%clk 0:00:04]} 41. Rxb5 {[%clk 0:00:45]}  Qd6 {[%clk 0:00:03]} 42. Rb7+ {[%clk 0:00:39]}  Kf6 {[%clk 0:00:04]} 43. Kg1 {[%clk 0:00:33]}  a3 {[%clk 0:00:04]} 44. Ra7 {[%clk 0:00:33]}  Kg5 {[%clk 0:00:02]} 45. g3 {[%clk 0:00:31]}  Kf6 {[%clk 0:00:02]} 46. Kg2 {[%clk 0:00:30]}  g5 {[%clk 0:00:03]} 47. Nh5+ {[%clk 0:00:26]}  Kg6 {[%clk 0:00:03]} 48. g4 {[%clk 0:00:27]}  Qb4 {[%clk 0:00:02]} 49. Ra8 {[%clk 0:00:21]}  f6 {[%clk 0:00:02]} 50. Nxe6 {[%clk 0:00:19]}  Qe4+ {[%clk 0:00:03]} 51. Kg1 {[%clk 0:00:16]}  Qxe6 {[%clk 0:00:03]} 52. Rxa3 {[%clk 0:00:16]}  Qb6 {[%clk 0:00:03]} 53. Ng3 {[%clk 0:00:12]}  h6 {[%clk 0:00:03]} 54. Nf5 {[%clk 0:00:12]}  Kf7 {[%clk 0:00:03]} 55. Nxh6+ {[%clk 0:00:11]}  Ke6 {[%clk 0:00:03]} 56. Nf5 {[%clk 0:00:12]}  Kd7 {[%clk 0:00:03]} 57. Nd4 {[%clk 0:00:12]}  Qb4 {[%clk 0:00:03]} 58. Ra4 {[%clk 0:00:12]}  Qe1+ {[%clk 0:00:02]} 59. Kg2 {[%clk 0:00:13]}  Qc3 {[%clk 0:00:02]} 60. Ra6 {[%clk 0:00:12]}  Ke7 {[%clk 0:00:02]} 61. Ra7+ {[%clk 0:00:11]}  Ke8 {[%clk 0:00:02]} 62. Rb7 {[%clk 0:00:09]}  Qd3 {[%clk 0:00:02]} 63. Rb6 {[%clk 0:00:08]}  Qe4+ {[%clk 0:00:02]} 64. Kg1 {[%clk 0:00:09]}  Kf7 {[%clk 0:00:03]} 65. b4 {[%clk 0:00:09]}  Qb1+ {[%clk 0:00:03]} 66. Kg2 {[%clk 0:00:09]}  Qe4+ {[%clk 0:00:03]} 67. Kh2 {[%clk 0:00:09]}  Qe5+ {[%clk 0:00:02]} 68. Kg1 {[%clk 0:00:09]}  Qc7 {[%clk 0:00:02]} 69. Rc6 {[%clk 0:00:08]}  Qa7 {[%clk 0:00:02]} 70. b5 {[%clk 0:00:09]}  Qa1+ {[%clk 0:00:03]} 71. Kg2 {[%clk 0:00:10]}  Qa8 {[%clk 0:00:03]} 72. b6 {[%clk 0:00:10]}  Kg6 {[%clk 0:00:01]} 73. Rc7 {[%clk 0:00:09]}  Qb8 {[%clk 0:00:01]} 74. Nf5 {[%clk 0:00:09]} 1-0


[Site "https://www.chess.com"]

[Event "Titled Tuesday Blitz April 11 Early 2023"]
[White "Krysa, Leandro"]
[Black "Sharapov, Evgeny"]
[WhiteFideId "116807"]
[BlackFideId "14103133"]
[WhiteElo "2489"]
[BlackElo "2367"]
[Result "1-0"]
[Round "09"]
[TimeControl "180+2"]
[Date "2023.04.11"]
[WhiteClock "0:00:14"]
[BlackClock "0:00:57"]

1. e4 {[%clk 0:02:54]}  c5 {[%clk 0:02:59]} 2. Nf3 {[%clk 0:02:53]}  d6 {[%clk 0:02:59]} 3. d4 {[%clk 0:02:54]}  cxd4 {[%clk 0:02:59]} 4. Nxd4 {[%clk 0:02:55]}  Nf6 {[%clk 0:02:59]} 5. Nc3 {[%clk 0:02:55]}  Nc6 {[%clk 0:02:59]} 6. Bg5 {[%clk 0:02:52]}  e6 {[%clk 0:02:59]} 7. Qd2 {[%clk 0:02:52]}  Be7 {[%clk 0:02:59]} 8. f4 {[%clk 0:02:47]}  O-O {[%clk 0:02:58]} 9. O-O-O {[%clk 0:02:47]}  Nxd4 {[%clk 0:02:58]} 10. Qxd4 {[%clk 0:02:47]}  Qa5 {[%clk 0:02:58]} 11. Kb1 {[%clk 0:02:40]}  Rd8 {[%clk 0:02:57]} 12. Bc4 {[%clk 0:02:33]}  Bd7 {[%clk 0:02:54]} 13. Bb3 {[%clk 0:02:32]}  Bc6 {[%clk 0:02:52]} 14. Rhe1 {[%clk 0:02:30]}  h6 {[%clk 0:02:52]} 15. Bh4 {[%clk 0:02:23]}  Qh5 {[%clk 0:02:48]} 16. Bg3 {[%clk 0:02:11]}  Qc5 {[%clk 0:02:45]} 17. Qd2 {[%clk 0:02:03]}  b5 {[%clk 0:02:34]} 18. Nd5 {[%clk 0:01:26]}  exd5 {[%clk 0:02:15]} 19. exd5 {[%clk 0:01:24]}  Bxd5 {[%clk 0:02:11]} 20. Bf2 {[%clk 0:01:04]}  Qc6 {[%clk 0:02:10]} 21. Bxd5 {[%clk 0:01:03]}  Nxd5 {[%clk 0:02:09]} 22. Qxd5 {[%clk 0:01:03]}  Qxd5 {[%clk 0:02:10]} 23. Rxd5 {[%clk 0:01:04]}  Bf6 {[%clk 0:01:59]} 24. Rxb5 {[%clk 0:01:00]}  Re8 {[%clk 0:01:59]} 25. Kc1 {[%clk 0:00:53]}  Rxe1+ {[%clk 0:01:55]} 26. Bxe1 {[%clk 0:00:54]}  Re8 {[%clk 0:01:55]} 27. Kd1 {[%clk 0:00:53]}  Re4 {[%clk 0:01:54]} 28. g3 {[%clk 0:00:52]}  Rd4+ {[%clk 0:01:50]} 29. Bd2 {[%clk 0:00:48]}  g5 {[%clk 0:01:41]} 30. Ke2 {[%clk 0:00:45]}  Re4+ {[%clk 0:01:38]} 31. Kf3 {[%clk 0:00:40]}  Ra4 {[%clk 0:01:33]} 32. fxg5 {[%clk 0:00:28]}  hxg5 {[%clk 0:01:30]} 33. Bxg5 {[%clk 0:00:28]}  Be5 {[%clk 0:01:21]} 34. a3 {[%clk 0:00:27]}  Rd4 {[%clk 0:01:14]} 35. c3 {[%clk 0:00:24]}  Rd1 {[%clk 0:01:12]} 36. Rb7 {[%clk 0:00:24]}  Rb1 {[%clk 0:01:10]} 37. Bd2 {[%clk 0:00:16]}  a5 {[%clk 0:01:10]} 38. a4 {[%clk 0:00:16]}  Rd1 {[%clk 0:01:05]} 39. Ke3 {[%clk 0:00:14]}  Rh1 {[%clk 0:01:05]} 40. b4 {[%clk 0:00:14]}  axb4 {[%clk 0:01:01]} 41. cxb4 {[%clk 0:00:14]}  Ra1 {[%clk 0:00:59]} 42. a5 {[%clk 0:00:14]}  Ra3+ {[%clk 0:00:59]} 43. Ke4 {[%clk 0:00:14]}  Ra2 {[%clk 0:00:58]} 44. Kd3 {[%clk 0:00:14]}  Ra3+ {[%clk 0:00:58]} 45. Kc4 {[%clk 0:00:14]}  Ra2 {[%clk 0:00:57]} 46. Be3 {[%clk 0:00:14]} 1-0


[Site "https://www.chess.com"]

[Event "Titled Tuesday Blitz April 11 Early 2023"]
[White "Seo, Jung Min"]
[Black "Omelja, Artem"]
[WhiteFideId "1734687"]
[BlackFideId "14119846"]
[WhiteElo "2468"]
[BlackElo "2404"]
[Result "1-0"]
[Round "09"]
[TimeControl "180+2"]
[Date "2023.04.11"]
[WhiteClock "0:01:01"]
[BlackClock "0:00:01"]

1. Nf3 {[%clk 0:03:00]}  Nf6 {[%clk 0:02:46]} 2. g3 {[%clk 0:03:00]}  d5 {[%clk 0:02:46]} 3. Bg2 {[%clk 0:03:00]}  c6 {[%clk 0:02:44]} 4. O-O {[%clk 0:03:00]}  Nbd7 {[%clk 0:02:42]} 5. c4 {[%clk 0:02:58]}  e6 {[%clk 0:02:42]} 6. b3 {[%clk 0:02:56]}  Be7 {[%clk 0:02:42]} 7. Bb2 {[%clk 0:02:57]}  O-O {[%clk 0:02:42]} 8. d3 {[%clk 0:02:54]}  b6 {[%clk 0:02:43]} 9. Nbd2 {[%clk 0:02:54]}  Bb7 {[%clk 0:02:41]} 10. Rc1 {[%clk 0:02:54]}  Rc8 {[%clk 0:02:42]} 11. Qc2 {[%clk 0:02:54]}  c5 {[%clk 0:02:43]} 12. e3 {[%clk 0:02:51]}  Re8 {[%clk 0:02:43]} 13. Rfd1 {[%clk 0:02:51]}  Bf8 {[%clk 0:02:42]} 14. Qb1 {[%clk 0:02:51]}  Rc7 {[%clk 0:02:41]} 15. Ne5 {[%clk 0:02:45]}  Qa8 {[%clk 0:02:40]} 16. Nxd7 {[%clk 0:02:44]}  Nxd7 {[%clk 0:02:41]} 17. cxd5 {[%clk 0:02:44]}  Bxd5 {[%clk 0:02:41]} 18. e4 {[%clk 0:02:38]}  Bb7 {[%clk 0:02:40]} 19. Nc4 {[%clk 0:02:37]}  Rd8 {[%clk 0:02:30]} 20. a3 {[%clk 0:02:16]}  Nb8 {[%clk 0:02:23]} 21. b4 {[%clk 0:02:12]}  Rcd7 {[%clk 0:02:19]} 22. b5 {[%clk 0:02:09]}  Rd4 {[%clk 0:01:46]} 23. a4 {[%clk 0:02:03]}  Nd7 {[%clk 0:01:45]} 24. Bxd4 {[%clk 0:02:01]}  cxd4 {[%clk 0:01:45]} 25. Nd2 {[%clk 0:01:55]}  Nc5 {[%clk 0:01:39]} 26. Rc4 {[%clk 0:01:54]}  e5 {[%clk 0:01:30]} 27. Nb3 {[%clk 0:01:52]}  Bc8 {[%clk 0:01:31]} 28. Nxc5 {[%clk 0:01:51]}  Bxc5 {[%clk 0:01:31]} 29. Rdc1 {[%clk 0:01:51]}  Be6 {[%clk 0:01:28]} 30. Rxc5 {[%clk 0:01:50]}  bxc5 {[%clk 0:01:28]} 31. Rxc5 {[%clk 0:01:49]}  Qb8 {[%clk 0:01:26]} 32. h4 {[%clk 0:01:38]}  Qd6 {[%clk 0:01:15]} 33. Qc1 {[%clk 0:01:36]}  h6 {[%clk 0:01:14]} 34. Kh2 {[%clk 0:01:35]}  Kh7 {[%clk 0:01:07]} 35. Bh3 {[%clk 0:01:33]}  Bxh3 {[%clk 0:00:58]} 36. Kxh3 {[%clk 0:01:33]}  Rd7 {[%clk 0:00:59]} 37. Kg2 {[%clk 0:01:32]}  Qe6 {[%clk 0:00:55]} 38. Qc4 {[%clk 0:01:30]}  Qf6 {[%clk 0:00:40]} 39. Rc6 {[%clk 0:01:28]}  Qe7 {[%clk 0:00:38]} 40. Qc5 {[%clk 0:01:25]}  Qe8 {[%clk 0:00:32]} 41. a5 {[%clk 0:01:21]}  Rb7 {[%clk 0:00:31]} 42. a6 {[%clk 0:01:21]}  Rb8 {[%clk 0:00:22]} 43. Qxa7 {[%clk 0:01:13]}  Rxb5 {[%clk 0:00:21]} 44. Rc7 {[%clk 0:01:14]}  Kg6 {[%clk 0:00:21]} 45. Rb7 {[%clk 0:01:12]}  f6 {[%clk 0:00:07]} 46. Rxb5 {[%clk 0:01:09]}  Qxb5 {[%clk 0:00:08]} 47. Qb7 {[%clk 0:01:09]}  Qxd3 {[%clk 0:00:06]} 48. a7 {[%clk 0:01:09]}  Qc4 {[%clk 0:00:02]} 49. a8=Q {[%clk 0:01:07]}  d3 {[%clk 0:00:03]} 50. Qe8+ {[%clk 0:01:05]}  Kh7 {[%clk 0:00:03]} 51. Qee7 {[%clk 0:01:06]}  Qg8 {[%clk 0:00:03]} 52. Qbd7 {[%clk 0:01:05]}  d2 {[%clk 0:00:02]} 53. Qxd2 {[%clk 0:01:05]}  h5 {[%clk 0:00:02]} 54. Qdd7 {[%clk 0:01:05]}  Kh6 {[%clk 0:00:03]} 55. Qee6 {[%clk 0:01:04]}  Qa8 {[%clk 0:00:02]} 56. Qf5 {[%clk 0:01:03]}  Qa6 {[%clk 0:00:01]} 57. Qd1 {[%clk 0:01:01]} 1-0


[Site "https://www.chess.com"]

[Event "Titled Tuesday Blitz April 11 Early 2023"]
[White "Hajiyev, Kanan"]
[Black "Al-Tarboush, Ward"]
[WhiteFideId "13404148"]
[BlackFideId "7601450"]
[WhiteElo "2103"]
[BlackElo "2265"]
[Result "1-0"]
[Round "09"]
[TimeControl "180+2"]
[Date "2023.04.11"]
[WhiteClock "0:00:27"]
[BlackClock "0:01:36"]

1. d4 {[%clk 0:02:53]}  d5 {[%clk 0:02:59]} 2. c4 {[%clk 0:02:50]}  c6 {[%clk 0:02:58]} 3. cxd5 {[%clk 0:02:51]}  cxd5 {[%clk 0:02:58]} 4. Nc3 {[%clk 0:02:52]}  Nf6 {[%clk 0:02:58]} 5. Bg5 {[%clk 0:02:52]}  Ne4 {[%clk 0:02:55]} 6. Bf4 {[%clk 0:02:50]}  Qa5 {[%clk 0:02:47]} 7. Qb3 {[%clk 0:02:49]}  Nxc3 {[%clk 0:02:45]} 8. bxc3 {[%clk 0:02:46]}  Nc6 {[%clk 0:02:44]} 9. e3 {[%clk 0:02:44]}  g6 {[%clk 0:02:26]} 10. Bd3 {[%clk 0:02:38]}  Bg7 {[%clk 0:02:26]} 11. Nf3 {[%clk 0:02:33]}  O-O {[%clk 0:02:25]} 12. O-O {[%clk 0:02:32]}  Bg4 {[%clk 0:02:23]} 13. Nd2 {[%clk 0:02:03]}  Rac8 {[%clk 0:02:20]} 14. h3 {[%clk 0:01:58]}  Bd7 {[%clk 0:02:17]} 15. Rab1 {[%clk 0:01:55]}  e5 {[%clk 0:02:16]} 16. dxe5 {[%clk 0:01:21]}  Nxe5 {[%clk 0:02:17]} 17. Bxe5 {[%clk 0:01:19]}  Bxe5 {[%clk 0:02:18]} 18. Qxb7 {[%clk 0:01:15]}  Qxc3 {[%clk 0:02:17]} 19. Qxd7 {[%clk 0:01:07]}  Qxd3 {[%clk 0:02:17]} 20. Nf3 {[%clk 0:01:03]}  Bg7 {[%clk 0:02:15]} 21. Rfd1 {[%clk 0:00:52]}  Qc2 {[%clk 0:02:10]} 22. Qxd5 {[%clk 0:00:45]}  Rfd8 {[%clk 0:02:10]} 23. Qxd8+ {[%clk 0:00:43]}  Rxd8 {[%clk 0:02:11]} 24. Rxd8+ {[%clk 0:00:43]}  Bf8 {[%clk 0:02:11]} 25. Rbb8 {[%clk 0:00:43]}  Qxa2 {[%clk 0:02:07]} 26. Rxf8+ {[%clk 0:00:44]}  Kg7 {[%clk 0:02:08]} 27. Rg8+ {[%clk 0:00:44]}  Kf6 {[%clk 0:02:07]} 28. g3 {[%clk 0:00:39]}  a5 {[%clk 0:02:07]} 29. Kg2 {[%clk 0:00:38]}  a4 {[%clk 0:02:06]} 30. Rb6+ {[%clk 0:00:39]}  Ke7 {[%clk 0:02:06]} 31. Ra8 {[%clk 0:00:39]}  g5 {[%clk 0:02:03]} 32. Ra7+ {[%clk 0:00:37]}  Kf8 {[%clk 0:02:02]} 33. Nxg5 {[%clk 0:00:30]}  Qd5+ {[%clk 0:01:53]} 34. Nf3 {[%clk 0:00:31]}  h5 {[%clk 0:01:44]} 35. h4 {[%clk 0:00:30]}  Qe4 {[%clk 0:01:43]} 36. Rba6 {[%clk 0:00:30]}  Qd3 {[%clk 0:01:41]} 37. Rxa4 {[%clk 0:00:30]}  Qb3 {[%clk 0:01:41]} 38. Rf4 {[%clk 0:00:29]}  Ke8 {[%clk 0:01:40]} 39. Rfxf7 {[%clk 0:00:29]}  Qb4 {[%clk 0:01:39]} 40. Rae7+ {[%clk 0:00:29]}  Kd8 {[%clk 0:01:39]} 41. Rb7 {[%clk 0:00:28]}  Qa4 {[%clk 0:01:36]} 42. Rb8# {[%clk 0:00:27]} 1-0


[Site "https://www.chess.com"]

[Event "Titled Tuesday Blitz April 11 Early 2023"]
[White "Dushyant Sharma"]
[Black "Skliarov, Viktor"]
[WhiteFideId "25065130"]
[BlackFideId "14106736"]
[WhiteElo "2198"]
[BlackElo "2317"]
[Result "1/2-1/2"]
[Round "09"]
[TimeControl "180+2"]
[Date "2023.04.11"]
[WhiteClock "0:01:27"]
[BlackClock "0:00:20"]

1. e4 {[%clk 0:03:00]}  c5 {[%clk 0:02:59]} 2. Nf3 {[%clk 0:03:01]}  Nc6 {[%clk 0:02:59]} 3. d4 {[%clk 0:03:01]}  cxd4 {[%clk 0:02:59]} 4. Nxd4 {[%clk 0:03:02]}  Nf6 {[%clk 0:03:00]} 5. Nc3 {[%clk 0:03:02]}  e5 {[%clk 0:03:01]} 6. Nxc6 {[%clk 0:03:02]}  bxc6 {[%clk 0:03:00]} 7. Bd3 {[%clk 0:03:03]}  d5 {[%clk 0:02:54]} 8. O-O {[%clk 0:03:00]}  Be7 {[%clk 0:02:46]} 9. Kh1 {[%clk 0:02:57]}  O-O {[%clk 0:02:12]} 10. f4 {[%clk 0:02:53]}  dxe4 {[%clk 0:01:59]} 11. Nxe4 {[%clk 0:02:49]}  Nxe4 {[%clk 0:01:58]} 12. Bxe4 {[%clk 0:02:49]}  Ba6 {[%clk 0:01:58]} 13. Qxd8 {[%clk 0:02:37]}  Raxd8 {[%clk 0:01:56]} 14. Re1 {[%clk 0:02:37]}  exf4 {[%clk 0:01:04]} 15. Bxf4 {[%clk 0:02:38]}  Bf6 {[%clk 0:01:04]} 16. c3 {[%clk 0:02:34]}  c5 {[%clk 0:01:04]} 17. Rad1 {[%clk 0:02:29]}  h6 {[%clk 0:01:01]} 18. h3 {[%clk 0:02:29]}  Bc4 {[%clk 0:00:58]} 19. a3 {[%clk 0:02:11]}  Bb3 {[%clk 0:00:52]} 20. Rxd8 {[%clk 0:02:11]}  Rxd8 {[%clk 0:00:52]} 21. Kh2 {[%clk 0:02:04]}  Bg5 {[%clk 0:00:40]} 22. Bxg5 {[%clk 0:01:49]}  hxg5 {[%clk 0:00:41]} 23. Re2 {[%clk 0:01:42]}  g6 {[%clk 0:00:39]} 24. Bf3 {[%clk 0:01:41]}  Bd1 {[%clk 0:00:28]} 25. Re5 {[%clk 0:01:29]}  Bxf3 {[%clk 0:00:27]} 26. gxf3 {[%clk 0:01:30]}  Rd2+ {[%clk 0:00:22]} 27. Kg3 {[%clk 0:01:30]}  Rxb2 {[%clk 0:00:22]} 28. Rxg5 {[%clk 0:01:27]}  Rb3 {[%clk 0:00:19]} 29. Rxc5 {[%clk 0:01:27]}  Rxa3 {[%clk 0:00:20]} 1/2-1/2


[Site "https://www.chess.com"]

[Event "Titled Tuesday Blitz April 11 Early 2023"]
[White "wqws"]
[Black "Ruiz Aguilar, Pablo Alexander"]
[BlackFideId "4401352"]
[WhiteElo "2611"]
[BlackElo "2138"]
[Result "1/2-1/2"]
[Round "09"]
[TimeControl "180+2"]
[Date "2023.04.11"]
[WhiteClock "0:00:11"]
[BlackClock "0:00:04"]

1. e4 {[%clk 0:03:00]}  c5 {[%clk 0:02:59]} 2. Nf3 {[%clk 0:03:00]}  e6 {[%clk 0:03:00]} 3. d4 {[%clk 0:03:00]}  cxd4 {[%clk 0:03:01]} 4. Nxd4 {[%clk 0:03:01]}  a6 {[%clk 0:03:01]} 5. Bd3 {[%clk 0:03:01]}  Nf6 {[%clk 0:03:00]} 6. O-O {[%clk 0:03:01]}  d6 {[%clk 0:03:01]} 7. Qe2 {[%clk 0:03:01]}  Be7 {[%clk 0:03:00]} 8. c4 {[%clk 0:03:01]}  b6 {[%clk 0:02:58]} 9. Nc3 {[%clk 0:03:02]}  Bb7 {[%clk 0:02:58]} 10. f4 {[%clk 0:03:02]}  g6 {[%clk 0:02:55]} 11. Be3 {[%clk 0:02:34]}  O-O {[%clk 0:02:52]} 12. Rad1 {[%clk 0:02:33]}  Nbd7 {[%clk 0:02:47]} 13. Bb1 {[%clk 0:02:31]}  Qc7 {[%clk 0:02:45]} 14. Kh1 {[%clk 0:02:13]}  Rfc8 {[%clk 0:02:45]} 15. Bd3 {[%clk 0:02:09]}  Nc5 {[%clk 0:02:42]} 16. f5 {[%clk 0:02:03]}  e5 {[%clk 0:02:36]} 17. fxg6 {[%clk 0:01:57]}  fxg6 {[%clk 0:02:33]} 18. Nb3 {[%clk 0:01:44]}  Ncxe4 {[%clk 0:02:21]} 19. Nxe4 {[%clk 0:01:42]}  Nxe4 {[%clk 0:02:13]} 20. Bxb6 {[%clk 0:01:41]}  Ng3+ {[%clk 0:02:09]} 21. hxg3 {[%clk 0:01:40]}  Qxb6 {[%clk 0:02:09]} 22. Be4 {[%clk 0:01:40]}  Rf8 {[%clk 0:02:01]} 23. Qg4 {[%clk 0:01:11]}  Bxe4 {[%clk 0:00:48]} 24. Qxe4 {[%clk 0:00:56]}  Rxf1+ {[%clk 0:00:42]} 25. Rxf1 {[%clk 0:00:57]}  Rf8 {[%clk 0:00:42]} 26. Qd5+ {[%clk 0:00:54]}  Kg7 {[%clk 0:00:40]} 27. Rxf8 {[%clk 0:00:50]}  Bxf8 {[%clk 0:00:40]} 28. c5 {[%clk 0:00:49]}  dxc5 {[%clk 0:00:38]} 29. Qxe5+ {[%clk 0:00:49]}  Qf6 {[%clk 0:00:38]} 30. Qxf6+ {[%clk 0:00:33]}  Kxf6 {[%clk 0:00:38]} 31. Kg1 {[%clk 0:00:33]}  Ke5 {[%clk 0:00:37]} 32. Kf2 {[%clk 0:00:34]}  c4 {[%clk 0:00:35]} 33. Nd2 {[%clk 0:00:33]}  Kd4 {[%clk 0:00:35]} 34. Ke2 {[%clk 0:00:31]}  Bd6 {[%clk 0:00:28]} 35. Nf3+ {[%clk 0:00:30]}  Kc5 {[%clk 0:00:25]} 36. g4 {[%clk 0:00:29]}  Kb4 {[%clk 0:00:22]} 37. Kd2 {[%clk 0:00:30]}  Bf4+ {[%clk 0:00:20]} 38. Kc2 {[%clk 0:00:30]}  a5 {[%clk 0:00:19]} 39. Nd4 {[%clk 0:00:27]}  g5 {[%clk 0:00:11]} 40. Nf5 {[%clk 0:00:20]}  Kc5 {[%clk 0:00:10]} 41. g3 {[%clk 0:00:20]}  Be5 {[%clk 0:00:09]} 42. b3 {[%clk 0:00:20]}  cxb3+ {[%clk 0:00:08]} 43. Kxb3 {[%clk 0:00:21]}  Kd5 {[%clk 0:00:06]} 44. Ka4 {[%clk 0:00:21]}  Bc7 {[%clk 0:00:05]} 45. Kb5 {[%clk 0:00:20]}  Ke4 {[%clk 0:00:05]} 46. Kc6 {[%clk 0:00:18]}  Bd8 {[%clk 0:00:04]} 47. Kd7 {[%clk 0:00:18]}  Bb6 {[%clk 0:00:04]} 48. Ke6 {[%clk 0:00:18]}  Kf3 {[%clk 0:00:04]} 49. Nh6 {[%clk 0:00:17]}  Kxg3 {[%clk 0:00:04]} 50. Kf5 {[%clk 0:00:18]}  Kh4 {[%clk 0:00:03]} 51. Nf7 {[%clk 0:00:17]}  Be3 {[%clk 0:00:02]} 52. Ne5 {[%clk 0:00:16]}  Bf4 {[%clk 0:00:02]} 53. Nf3+ {[%clk 0:00:13]}  Kg3 {[%clk 0:00:02]} 54. Nxg5 {[%clk 0:00:13]}  Bxg5 {[%clk 0:00:02]} 55. Kxg5 {[%clk 0:00:14]}  a4 {[%clk 0:00:03]} 56. Kf5 {[%clk 0:00:13]}  a3 {[%clk 0:00:03]} 57. g5 {[%clk 0:00:12]}  Kh4 {[%clk 0:00:04]} 58. Kf4 {[%clk 0:00:12]}  Kh5 {[%clk 0:00:03]} 59. Kf5 {[%clk 0:00:13]}  Kh4 {[%clk 0:00:04]} 60. Kf4 {[%clk 0:00:11]}  Kh3 {[%clk 0:00:04]} 61. Kf3 {[%clk 0:00:10]}  Kh4 {[%clk 0:00:04]} 62. Kf4 {[%clk 0:00:11]} 1/2-1/2


[Site "https://www.chess.com"]